bitfinex-derivatives/quotes_ETHF0:USTF0_20251008
["timestamp","ask_amount","ask_price","bid_price","bid_amount"]
[1759881859861,0.42822027,4462.5,4462.4,3.83596]
[1759881860053,0.42822027,4462.5,4462.4,17.12461073]
[1759881860256,0.00272027,4462.5,4462.4,17.12461073]
[1759881860654,1.50292027,4462.5,4462.4,3.61096]
[1759881860860,2.94282027,4462.5,4462.4,3.2078]
[1759881861061,2.94282027,4462.5,4462.4,3.4328]
[1759881861360,2.23162027,4462.5,4462.4,3.4328]
[1759881861855,2.23162027,4462.5,4462.4,3.2078]
[1759881861856,2.94282027,4462.5,4462.4,3.2078]
[1759881862060,2.94282027,4462.5,4462.4,3.4328]
[1759881864656,2.94282027,4462.5,4460.9,0.40329]
[1759881864657,1.1542,4461.0,4460.9,0.40329]
[1759881864859,0.4255,4461.0,4460.9,0.62829]
[1759881865049,1.5002,4461.0,4460.9,13.91694073]
[1759881865251,2.2289,4461.0,4460.9,13.91694073]
[1759881865653,1.5002,4461.0,4460.9,13.91694073]
[1759881865855,2.2289,4461.0,4460.9,13.91694073]
[1759881866062,2.2289,4461.0,4460.9,13.51365073]
[1759881866258,1.0747,4460.9,4460.8,5.02933912]
[1759881866463,2.5146,4460.9,4460.8,5.25433912]
[1759881866760,2.5146,4460.9,4460.8,3.4328]
[1759881866962,7.5146,4460.9,4460.8,3.4328]
[1759881867360,7.5146,4460.9,4460.8,3.2078]
[1759881868961,1.0747,4460.9,4460.8,3.4328]
[1759881869264,1.4656,4461.0,4460.9,0.4033]
[1759881869459,2.875,4461.0,4460.9,13.69195073]
[1759881869767,2.875,4461.0,4460.9,0.6283]
[1759881870264,1.4656,4461.0,4460.9,0.6283]
[1759881870662,2.1697,4461.0,4460.9,0.4033]
[1759881870865,2.1697,4461.0,4460.9,0.6283]
[1759881871367,2.875,4461.0,4460.9,0.4033]
[1759881871568,2.875,4461.0,4460.9,0.6283]
[1759881872162,2.4495,4460.9,4460.8,3.2078]
[1759881872358,2.4495,4460.9,4460.8,3.4328]
[1759881872958,2.4495,4460.9,4460.8,3.2078]
[1759881874673,7.4495,4460.9,4460.7,0.62832]
[1759881875169,2.4495,4460.9,4460.7,0.62832]
[1759881875576,2.8528,4460.9,4460.7,0.62832]
[1759881875761,2.4495,4460.9,4460.7,0.62832]
[1759881878074,2.8528,4460.9,4460.7,0.62832]
[1759881878374,2.4495,4460.3,4460.2,3.61116]
[1759881878576,2.4495,4460.3,4460.2,3.83616]
[1759881878870,2.4495,4460.3,4460.2,17.12481073]
[1759881879671,2.4495,4460.3,4460.2,16.89981073]
[1759881879873,1.4411,4460.5,4460.4,0.40334]
[1759881880172,1.4691,4461.0,4460.9,0.4033]
[1759881880374,1.4691,4461.0,4460.9,13.91695073]
[1759881883172,2.7972,4461.0,4460.9,0.4033]
[1759881883376,2.7972,4461.0,4460.9,0.6283]
[1759881884583,2.1353,4461.0,4460.9,0.6283]
[1759881884887,4.9614,4462.0,4461.9,1.05521]
[1759881885279,3.874,4462.0,4461.9,2.77831]
[1759881885475,0.3918,4461.0,4460.9,0.4033]
[1759881885681,1.7199,4461.0,4460.9,1.2803]
[1759881885984,1.7199,4461.5,4461.4,0.40325]
[1759881886486,1.7199,4461.5,4461.4,1.05525]
[1759881886877,2.7635,4461.5,4461.4,0.40325]
[1759881887988,2.7635,4461.5,4461.4,1.05525]
[1759881888286,2.7635,4461.5,4461.4,1.73335]
[1759881888488,2.7635,4461.5,4461.4,15.02200073]
[1759881889079,1.0436,4461.5,4461.4,16.06700073]
[1759881889387,0.3918,4462.0,4461.9,1.05521]
[1759881889388,2.7635,4462.0,4461.9,1.05521]
[1759881890591,2.5635,4462.0,4461.9,1.05521]
[1759881891088,1.73131,4461.9,4461.8,0.40322]
[1759881891289,1.3281,4461.7,4461.6,0.62823]
[1759881891486,2.3717,4461.7,4461.6,0.62823]
[1759881891886,2.3717,4461.7,4461.6,1.28023]
[1759881893381,2.77494,4461.6,4461.5,0.40324]
[1759881893591,2.3717,4461.6,4461.5,0.62824]
[1759881893785,2.3717,4461.6,4461.5,1.28024]
[1759881895286,2.3717,4461.6,4461.5,1.95834]
[1759881895894,2.3717,4461.6,4461.5,1.28024]
[1759881896491,2.1016,4461.0,4460.9,0.4033]
[1759881896691,2.7635,4461.0,4460.8,3.2078]
[1759881896889,2.3717,4460.4,4460.3,4.94125]
[1759881897091,2.3717,4460.4,4460.3,6.21125]
[1759881897092,1.7098,4460.4,4460.3,6.21125]
[1759881897288,1.6478,4461.0,4460.9,2.7889]
[1759881897488,2.3149,4461.4,4461.3,1.73296]
[1759881897689,2.83397835,4461.4,4461.3,1.73296]
[1759881898393,2.3149,4461.4,4461.3,1.73296]
[1759881898791,1.3072,4460.6,4460.5,1.3297]
[1759881899092,1.3072,4460.6,4460.5,16.30258073]
[1759881899292,2.708,4461.0,4460.9,1.733]
[1759881899494,1.0077,4461.0,4460.9,16.07755073]
[1759881899691,0.225,4461.4,4461.3,0.40326]
[1759881899889,3.8749,4461.6,4461.5,0.40325]
[1759881900192,4.39394316,4461.6,4461.5,2.78885]
[1759881900392,3.2078,4461.6,4461.5,16.07750073]
[1759881900590,4.8826,4461.6,4461.5,16.07750073]
[1759881901591,1.8666,4462.0,4461.9,2.78881]
[1759881901791,1.8666,4462.0,4461.8,13.28865073]
[1759881901792,2.01804118,4462.0,4461.8,13.28865073]
[1759881901987,2.83394118,4461.9,4461.8,13.51365073]
[1759881902296,2.83394118,4461.9,4461.8,2.6106]
[1759881903098,2.83394118,4461.9,4461.8,1.5547]
[1759881904299,2.83394118,4461.9,4461.8,0.225]
[1759881904691,2.83394118,4461.9,4461.2,1.00817]
[1759881904692,2.3149,4461.4,4461.3,0.40326]
[1759881904896,2.3149,4461.4,4461.3,0.225]
[1759881905889,2.3149,4461.4,4460.8,3.2078]
[1759881905890,1.6478,4461.3,4460.8,3.2078]
[1759881906091,2.10359,4461.0,4460.8,3.2078]
[1759881906295,2.10359,4461.0,4460.8,3.4328]
[1759881906499,2.3149,4460.9,4460.8,3.83611]
[1759881906996,2.3149,4460.9,4460.8,3.2078]
[1759881907298,2.3149,4460.3,4460.2,4.28796]
[1759881907498,2.3149,4460.3,4460.2,4.94086]
[1759881907797,2.3149,4460.3,4460.2,3.61116]
[1759881909296,2.3149,4460.3,4460.2,4.28796]
[1759881909499,2.3149,4460.9,4460.8,0.6768]
[1759881909796,0.6671,4460.9,4460.8,16.07756073]
[1759881909998,0.6671,4460.9,4460.8,2.78891]
[1759881910200,2.3149,4460.9,4460.8,0.40331]
[1759881913500,2.3149,4460.3,4460.2,3.2078]
[1759881913705,2.3149,4460.3,4460.2,3.83616]
[1759881913905,2.3149,4460.3,4460.2,0.62836]
[1759881914098,2.3149,4460.3,4460.2,0.40336]
[1759881914904,2.3149,4460.3,4460.2,1.08016]
[1759881915105,2.3149,4460.3,4460.2,1.73306]
[1759881915301,1.6748,4460.3,4460.2,16.07761073]
[1759881918309,2.3149,4460.3,4460.2,16.07761073]
[1759881918505,2.3149,4460.3,4460.2,15.02171073]
[1759881921813,2.3149,4460.3,4460.2,14.36881073]
[1759881922412,2.3149,4460.3,4460.2,14.59381073]
[1759881923914,2.3149,4460.3,4460.2,15.24671073]
[1759881924314,2.3149,4460.3,4460.2,15.02171073]
[1759881924708,2.3149,4460.3,4460.2,15.24671073]
[1759881926012,2.3149,4460.3,4460.2,16.30261073]
[1759881927618,2.3149,4460.3,4460.2,16.07761073]
[1759881927819,2.3149,4460.3,4460.2,16.30261073]
[1759881928721,2.3149,4460.3,4460.2,15.24671073]
[1759881928915,2.3149,4460.3,4460.2,14.36881073]
[1759881929217,2.3149,4460.3,4460.2,14.59381073]
[1759881930621,2.3149,4460.3,4460.2,15.26271073]
[1759881930921,2.3149,4460.3,4460.2,16.21191073]
[1759881931515,4.2528,4461.0,4460.9,1.0911]
[1759881931813,4.9126,4461.5,4461.4,1.75995]
[1759881932010,6.42146715,4461.5,4461.4,1.75995]
[1759881932417,6.42146715,4461.5,4461.4,1.09105]
[1759881933515,1.72116,4461.4,4461.3,0.40326]
[1759881933716,1.0388,4461.0,4460.9,0.40329]
[1759881933922,1.0388,4461.0,4460.9,0.62829]
[1759881933923,1.7048,4461.0,4460.9,0.62829]
[1759881934218,2.6897,4461.0,4460.9,0.62829]
[1759881934520,2.3028,4460.4,4460.3,4.29895]
[1759881934821,2.3028,4460.4,4460.3,19.43070073]
[1759881935121,2.3028,4460.4,4460.3,6.14205]
[1759881935618,1.3179,4459.9,4459.7,3.2078]
[1759881935819,1.5429,4459.8,4459.7,3.2078]
[1759881936122,4.60734047,4459.8,4459.7,3.8956]
[1759881936323,5.27334047,4459.8,4459.7,3.8956]
[1759881936518,5.27334047,4459.8,4459.7,3.2078]
[1759881938720,2.49623,4459.4,4459.3,0.00287418]
[1759881938924,2.72123,4459.4,4459.3,0.00287418]
[1759881939126,5.02315729,4459.4,4459.3,1.63987418]
[1759881939319,4.47325729,4459.4,4459.3,1.63987418]
[1759881939625,5.26885729,4459.4,4459.3,0.95207418]
[1759881939922,5.26885729,4459.4,4459.3,0.96317418]
[1759881940928,5.26885729,4459.4,4459.3,0.00287418]
[1759881941521,4.47325729,4459.4,4459.3,1.62977418]
[1759881941723,4.24825729,4459.4,4459.3,1.62977418]
[1759881941929,5.26885729,4459.4,4459.3,0.96317418]
[1759881942228,5.04385729,4459.4,4459.3,1.62977418]
[1759881942419,5.26885729,4459.4,4459.3,1.62977418]
[1759881942617,4.24825729,4459.4,4459.3,1.62977418]
[1759881942825,4.47325729,4459.4,4459.3,1.62977418]
[1759881943022,4.47325729,4459.4,4459.3,2.30067418]
[1759881943417,4.24825729,4459.4,4459.3,2.30067418]
[1759881943624,4.47325729,4459.4,4459.3,2.30067418]
[1759881943917,5.26885729,4459.4,4459.3,0.00287418]
[1759881944323,5.26885729,4459.4,4459.3,0.96317418]
[1759881944529,4.24825729,4459.4,4459.3,1.62977418]
[1759881944730,4.47325729,4459.4,4459.3,1.62977418]
[1759881945424,3.2078,4460.1,4460.0,0.40338]
[1759881945625,2.1045,4460.5,4460.4,0.40334]
[1759881945826,2.1045,4460.1,4460.0,0.9603]
[1759881946022,1.3089,4459.6,4459.5,1.45323]
[1759881946232,1.5339,4459.6,4459.5,1.45323]
[1759881946528,1.5339,4459.6,4459.5,15.70218073]
[1759881947125,2.3295,4459.6,4459.5,15.70218073]
[1759881948030,0.40343,4459.5,4459.3,0.40631418]
[1759881948231,2.1045,4459.4,4459.3,13.69496491]
[1759881948531,1.3089,4459.4,4459.3,15.32186491]
[1759881948833,1.3089,4459.4,4459.3,2.03321418]
[1759881949833,2.1045,4459.4,4459.3,2.03321418]
[1759881950130,1.3089,4459.4,4459.3,2.70411418]
[1759881952530,5.02576466,4459.4,4459.3,0.00287418]
[1759881952723,5.42919466,4459.4,4459.3,0.00287418]
[1759881952930,4.23016466,4459.4,4459.3,2.03321418]
[1759881953228,4.23016466,4459.4,4459.3,2.70411418]
[1759881953628,4.63359466,4459.4,4459.3,2.70411418]
[1759881953829,4.23016466,4459.4,4459.3,2.70411418]
[1759881954035,3.56656466,4459.4,4459.3,2.70411418]
[1759881955234,0.7956,4460.2,4459.9,0.40338]
[1759881955434,1.71228,4460.0,4459.9,2.03028]
[1759881955735,5.43278656,4460.0,4459.9,1.6269]
[1759881956038,1.71231,4459.7,4459.6,2.03031]
[1759881956539,4.58843249,4459.7,4459.6,2.03031]
[1759881956940,4.58843249,4459.7,4459.6,2.70121]
[1759881957543,4.18502249,4459.7,4459.6,2.70121]
[1759881958643,0.6453,4459.7,4459.6,2.70121]
[1759881958833,4.5801,4460.3,4460.2,2.67556]
[1759881959039,3.8994,4460.3,4460.2,2.67556]
[1759881959345,7.45211397,4460.3,4460.2,2.67556]
[1759881960240,7.45211397,4460.3,4460.2,15.96421073]
[1759881960440,7.67711397,4460.3,4460.2,15.96421073]
[1759881960644,6.99641397,4460.3,4460.2,15.96421073]
[1759881961145,6.99641397,4460.3,4460.2,15.56085073]
[1759881961146,8.08046397,4460.3,4460.2,15.56085073]
[1759881961348,8.85496397,4460.3,4460.2,14.29365073]
[1759881962350,8.08046397,4460.3,4460.2,15.56085073]
[1759881963143,9.38565299,4460.3,4460.2,14.92935073]
[1759881963539,8.61115299,4460.3,4460.2,15.33271073]
[1759881963740,7.67711397,4460.3,4460.2,15.96421073]
[1759881963951,7.45211397,4460.3,4460.2,15.96421073]
[1759881964152,7.67711397,4460.3,4460.2,15.96421073]
[1759881964645,4.1244,4460.3,4460.2,15.96421073]
[1759881964946,3.8994,4460.8,4460.7,0.40332]
[1759881965152,3.2078,4460.8,4460.7,2.67552]
[1759881965349,7.02779703,4461.4,4461.3,2.67546]
[1759881965552,3.96398474,4461.4,4461.3,15.96411073]
[1759881965754,5.33628474,4461.4,4461.3,2.67546]
[1759881966249,3.4328,4461.4,4461.3,2.67546]
[1759881966449,2.1468,4460.7,4460.5,1.4194]
[1759881966754,1.3723,4460.7,4460.5,0.62833]
[1759881966956,1.5973,4460.7,4460.2,0.40336]
[1759881967148,2.1468,4459.9,4459.8,1.005]
[1759881967350,1.3723,4459.7,4459.6,1.63342]
[1759881967648,1.4661,4459.4,4459.3,0.00287418]
[1759881967847,2.1468,4459.4,4459.3,0.00287418]
[1759881968153,2.1468,4459.4,4459.3,1.64357418]
[1759881968154,1.3723,4459.4,4459.3,1.64357418]
[1759881968356,0.9166,4459.5,4459.4,2.67563]
[1759881968546,1.32003,4459.5,4459.4,15.96428073]
[1759881968746,1.3723,4459.5,4459.4,15.96428073]
[1759881969256,2.1468,4459.5,4459.4,14.29365073]
[1759881969458,2.1468,4459.5,4459.4,13.28865073]
[1759881969852,0.40343,4459.4,4459.3,0.00287418]
[1759881970152,5.51495815,4459.4,4459.3,0.00287418]
[1759881970549,1.3723,4458.5,4458.4,3.2078]
[1759881970856,2.144,4458.5,4458.3,0.40353]
[1759881971053,2.144,4458.1,4458.0,2.45866]
[1759881971255,2.144,4458.1,4458.0,2.68366]
[1759881971552,2.144,4458.1,4458.0,15.75015147]
[1759881971755,2.14660633,4458.1,4458.0,14.93589147]
[1759881971956,1.37490633,4458.1,4458.0,15.57159147]
[1759881972251,1.37490633,4458.1,4458.0,16.20309147]
[1759881972450,0.00260633,4458.1,4458.0,16.20309147]
[1759881972650,0.69420633,4458.1,4458.0,16.20309147]
[1759881974256,0.00260633,4458.1,4458.0,16.20309147]
[1759881974453,0.00260633,4458.1,4458.0,21.20309147]
[1759881974960,0.6916,4459.3,4459.2,2.67565]
[1759881975358,0.6916,4459.3,4459.2,15.96430073]
[1759881975856,0.69435822,4459.3,4459.2,15.96430073]
[1759881976356,1.37505822,4459.3,4459.2,15.33280073]
[1759881976554,1.37505822,4459.3,4459.2,14.92935073]
[1759881976958,0.69435822,4459.3,4459.2,15.56085073]
[1759881977454,1.37505822,4459.3,4459.2,15.56085073]
[1759881979261,0.00275822,4459.3,4459.2,15.56085073]
[1759881982664,3.2078,4460.0,4459.9,2.67559]
[1759881982863,0.6916,4460.3,4460.2,1.67056]
[1759881983051,0.6916,4460.3,4460.2,2.67556]
[1759881983259,3.62015134,4460.3,4460.2,2.67556]
[1759881983669,4.30271584,4460.3,4460.2,2.67556]
[1759881984159,4.30271584,4460.3,4460.2,2.2722]
[1759881984362,1.3723,4459.8,4459.7,1.005]
[1759881984561,2.1466,4459.8,4459.7,1.005]
[1759881984752,1.3723,4459.8,4459.7,15.56085073]
[1759881985563,0.225,4460.1,4460.0,1.0501]
[1759881985758,0.225,4460.1,4460.0,15.97525073]
[1759881985965,3.14030481,4460.1,4460.0,2.6866]
[1759881986161,3.83190481,4460.1,4460.0,2.6866]
[1759881987362,5.25230481,4460.1,4460.0,1.005]
[1759881988568,5.25230481,4460.1,4460.0,1.6337]
[1759881989665,5.56914481,4460.1,4459.3,3.2078]
[1759881989968,2.0675,4459.2,4459.1,1.42006]
[1759881990159,1.3278,4459.2,4459.1,2.27376]
[1759881990463,1.3278,4459.2,4459.1,2.90136]
[1759881990660,1.3278,4459.2,4459.1,2.4979]
[1759881990860,1.3278,4458.9,4458.8,1.0166]
[1759881991165,1.3278,4458.9,4458.2,1.0166]
[1759881991166,2.47104,4458.3,4458.2,1.0166]
[1759881991364,2.47104,4458.3,4458.2,13.28865073]
[1759881991667,2.47104,4458.3,4458.0,0.00284074]
[1759881991668,2.47105,4458.1,4458.0,1.01944074]
[1759881991864,2.47105,4458.1,4458.0,0.00284074]
[1759881991865,2.69605,4458.1,4458.0,0.00284074]
[1759881992062,1.3278,4457.1,4457.0,1.4241]
[1759881992262,1.3278,4457.1,4457.0,1.5271]
[1759881992467,1.3278,4457.1,4457.0,15.44445073]
[1759881992768,1.3278,4457.1,4457.0,16.07205073]
[1759881993155,1.32947364,4457.1,4457.0,16.07366166]
[1759881994068,8.25009347,4457.1,4457.0,0.00161093]
[1759881994657,8.25009347,4457.1,4457.0,1.01821093]
[1759881994658,4.30259347,4457.1,4457.0,1.01821093]
[1759881995271,4.30259347,4457.1,4457.0,1.64691093]
[1759881995565,0.00167364,4457.1,4457.0,16.19566166]
[1759881998363,0.00167364,4457.1,4457.0,19.40346166]
[1759881999170,2.06917364,4457.1,4457.0,3.20941093]
[1759881999669,1.32947364,4457.1,4457.0,4.14591093]
[1759881999869,1.32947364,4457.1,4457.0,3.20941093]
[1759881999870,2.05547364,4457.1,4457.0,3.20941093]
[1759882000069,2.05547364,4457.1,4457.0,4.14591093]
[1759882000265,1.32947364,4457.1,4457.0,4.14591093]
[1759882000467,1.32947364,4457.1,4457.0,4.76901093]
[1759882000667,1.32947364,4457.1,4457.0,5.14041093]
[1759882001268,1.32947364,4457.1,4457.0,5.36541093]
[1759882001472,0.00167364,4457.1,4457.0,19.08106166]
[1759882001770,0.00167364,4457.1,4457.0,19.30606166]
[1759882002068,4.91798314,4457.1,4457.0,13.29026166]
[1759882002773,4.91798314,4457.1,4457.0,14.22676166]
[1759882004273,4.19198314,4457.1,4457.0,15.22126166]
[1759882004473,4.91798314,4457.1,4457.0,13.29026166]
[1759882004670,4.91798314,4457.1,4457.0,13.51526166]
[1759882005467,4.91798314,4457.1,4457.0,0.00161093]
[1759882005668,4.91798314,4457.1,4457.0,0.22661093]
[1759882005973,4.91798314,4457.1,4457.0,0.00161093]
[1759882008074,5.32162314,4457.1,4457.0,0.00161093]
[1759882010077,8.52942314,4457.1,4457.0,0.00161093]
[1759882011071,8.52942314,4457.1,4457.0,1.093e-05]
[1759882011278,2.39193,4456.1,4456.0,3.2078]
[1759882011571,5.30134309,4456.1,4456.0,16.49645073]
[1759882011775,5.52634309,4456.1,4456.0,16.49645073]
[1759882012277,5.52634309,4456.1,4456.0,16.49886042]
[1759882012577,5.52634309,4456.1,4456.0,16.90260042]
[1759882013773,0.6302,4456.6,4456.5,2.0502]
[1759882014075,0.6302,4456.6,4456.5,2.9867]
[1759882014275,1.03389,4456.6,4456.5,15.87165073]
[1759882014667,1.66749,4456.6,4456.5,16.27535073]
[1759882014869,1.2638,4456.6,4456.5,16.27535073]
[1759882015372,1.66749,4456.6,4456.5,16.27535073]
[1759882015770,2.39193,4456.1,4456.0,0.00240969]
[1759882015975,2.61693,4456.1,4456.0,0.00240969]
[1759882016170,5.49346858,4456.1,4456.0,0.00240969]
[1759882017677,5.49346858,4456.1,4456.0,0.40614969]
[1759882017881,4.54406858,4456.1,4456.0,14.61390042]
[1759882018173,4.76906858,4456.1,4456.0,14.21016042]
[1759882018486,5.47306858,4456.1,4456.0,14.21016042]
[1759882019373,5.24806858,4456.1,4456.0,14.21016042]
[1759882019581,5.47306858,4456.1,4456.0,14.21016042]
[1759882020483,5.06933858,4456.1,4456.0,14.21016042]
[1759882020680,1.4888,4456.1,4456.0,15.68740042]
[1759882020984,1.301,4456.1,4456.0,16.33910042]
[1759882021379,1.301,4456.1,4456.0,19.54690042]
[1759882021587,0.6489,4456.5,4456.4,2.64341]
[1759882021773,1.17166168,4456.5,4456.4,16.15706073]
[1759882022379,4.93281364,4457.1,4457.0,1.47715]
[1759882022681,9.32858049,4457.1,4457.0,0.9191]
[1759882022881,1.3197,4456.7,4456.6,1.813]
[1759882023277,0.6489,4456.7,4456.6,2.86839]
[1759882023483,1.94835,4457.0,4456.9,1.588]
[1759882023780,1.72338,4456.7,4456.6,0.62868]
[1759882023985,0.704,4456.5,4456.0,0.40700969]
[1759882024182,2.0237,4456.3,4456.1,1.1441]
[1759882024587,1.3197,4456.3,4456.2,14.61147073]
[1759882024887,1.3197,4456.3,4456.2,15.28037073]
[1759882025381,1.72342,4456.3,4456.2,14.20775073]
[1759882025586,2.42743,4456.1,4456.0,0.00240969]
[1759882025895,6.03655089,4456.1,4456.0,0.00240969]
[1759882026789,1.72348,4455.6,4455.5,3.2078]
[1759882026990,2.65008,4455.6,4455.5,3.2078]
[1759882027289,5.60106434,4455.6,4455.5,3.2078]
[1759882027683,0.40383,4455.1,4454.9,3.83664]
[1759882027983,1.3197,4455.0,4454.9,4.35427993]
[1759882028188,1.3197,4455.0,4454.9,4.12927993]
[1759882028387,1.3197,4455.0,4454.9,17.64293066]
[1759882028787,1.3197,4455.0,4454.9,17.41793066]
[1759882028987,2.0213,4455.0,4454.9,16.72383066]
[1759882029183,2.0213,4455.0,4454.9,13.51603066]
[1759882029384,2.0213,4455.0,4454.9,13.29103066]
[1759882029892,2.0213,4455.0,4454.9,0.00237993]
[1759882030092,2.0213,4455.0,4454.9,13.29103066]
[1759882030588,2.0213,4455.0,4454.9,14.21013066]
[1759882031091,1.3197,4455.0,4454.9,14.87903066]
[1759882031689,1.3197,4455.6,4455.5,1.99179]
[1759882031991,3.54225734,4455.6,4455.5,16.33674073]
[1759882032181,4.21305734,4455.6,4455.5,2.6443]
[1759882032387,4.21305734,4455.6,4454.9,3.21017993]
[1759882032388,2.0213,4455.2,4455.1,0.40382]
[1759882032787,1.3197,4455.2,4455.1,1.32292]
[1759882033086,2.0213,4455.0,4454.9,3.21017993]
[1759882033287,6.13391643,4455.0,4454.9,0.00237993]
[1759882033488,9.03739204,4455.0,4454.9,0.00237993]
[1759882038995,9.44122204,4455.0,4454.9,0.00237993]
[1759882039697,2.0189,4454.1,4454.0,0.40392]
[1759882039996,1.3197,4454.1,4454.0,1.99192]
[1759882040192,1.3197,4454.1,4454.0,15.68517073]
[1759882040597,1.3197,4454.1,4454.0,15.68769966]
[1759882040996,1.3197,4454.1,4454.0,16.33939966]
[1759882044998,2.0189,4454.1,4454.0,16.33939966]
[1759882045297,1.72361,4454.1,4454.0,16.33939966]
[1759882046896,5.3039804,4454.1,4454.0,13.29117966]
[1759882047093,5.3039804,4454.1,4454.0,0.00252893]
[1759882047094,5.5289804,4454.1,4454.0,0.00252893]
[1759882047295,6.05911016,4454.1,4454.0,0.00252893]
[1759882050400,5.5289804,4454.1,4454.0,0.00252893]
[1759882051197,5.5289804,4454.1,4454.0,2.893e-05]
[1759882051397,1.9566,4453.4,4453.0,0.40401]
[1759882051602,1.06721,4453.0,4452.8,3.2078]
[1759882051898,2.36061,4453.0,4452.8,3.2078]
[1759882052102,2.36061,4453.0,4452.9,13.31110826]
[1759882052298,5.6433534,4453.0,4452.9,13.31380032]
[1759882052700,5.6433534,4453.0,4452.9,0.02514959]
[1759882055200,5.2393434,4453.0,4452.9,0.02514959]
[1759882057405,5.6433534,4453.0,4452.9,0.02514959]
[1759882059005,0.00206333,4453.0,4452.9,20.92292032]
[1759882059198,0.6304,4453.9,4453.8,2.62544]
[1759882059599,4.17480832,4453.9,4453.8,2.62544]
[1759882059807,4.17480832,4453.9,4453.8,2.2215]
[1759882060009,4.82470832,4453.9,4453.8,1.6224]
[1759882060206,4.8266752,4453.9,4453.8,0.9891]
[1759882061104,1.8892,4453.1,4453.0,1.9833]
[1759882061299,0.404,4453.2,4452.9,0.25014959]
[1759882061300,2.29321,4453.0,4452.9,0.42916959]
[1759882061506,2.51821,4453.0,4452.9,0.02514959]
[1759882061710,5.42903085,4453.0,4452.9,0.02514959]
[1759882061912,5.42903085,4453.0,4452.9,13.31380032]
[1759882062608,5.20403085,4453.0,4452.9,13.31380032]
[1759882062805,5.02502085,4453.0,4452.9,14.30290032]
[1759882063008,4.37512085,4453.0,4452.9,14.93620032]
[1759882063208,4.15012085,4453.0,4452.9,14.93620032]
[1759882063409,4.37512085,4453.0,4452.9,14.93620032]
[1759882063610,0.40398,4453.4,4453.3,1.6224]
[1759882063810,1.23108,4453.4,4453.3,14.91105073]
[1759882064009,4.75682579,4453.4,4453.3,1.6224]
[1759882065116,5.40672579,4453.4,4453.3,1.6224]
[1759882065308,2.2932,4453.2,4453.1,0.9891]
[1759882065711,1.8892,4453.2,4453.1,1.6224]
[1759882066015,1.2393,4453.2,4453.1,2.2215]
[1759882066712,1.8892,4453.2,4453.1,1.6224]
[1759882067016,1.2393,4453.2,4453.1,2.2215]
[1759882069115,1.6433,4453.2,4453.1,2.62551]
[1759882069511,1.0061,4453.2,4453.1,2.62551]
[1759882069711,1.6433,4453.2,4453.1,2.62551]
[1759882070019,2.2932,4453.2,4453.1,1.39311]
[1759882070617,2.2932,4453.2,4453.1,2.02641]
[1759882072115,1.2393,4453.2,4453.1,2.02641]
[1759882072322,4.85106,4453.6,4453.5,2.5824]
[1759882072517,5.60946389,4453.6,4453.5,2.5824]
[1759882072721,9.17263124,4453.6,4453.5,1.9833]
[1759882073020,9.17263124,4453.6,4453.5,1.35]
[1759882073415,8.94763124,4453.6,4453.5,1.35]
[1759882073615,7.25657124,4453.6,4453.5,16.27502073]
[1759882073811,0.6499,4454.1,4453.8,1.63634]
[1759882073812,0.62892,4454.0,4453.8,1.63634]
[1759882074023,1.54159952,4453.9,4453.8,15.91409073]
[1759882074224,5.77092915,4453.9,4453.8,0.9891]
[1759882074723,2.29315,4453.7,4453.6,1.39305]
[1759882074911,2.29315,4453.7,4453.6,0.9891]
[1759882075115,2.29315,4453.7,4453.6,1.39306]
[1759882075520,2.29315,4453.7,4453.6,0.9891]
[1759882075820,2.29315,4453.7,4453.6,2.02636]
[1759882076219,1.64325,4453.7,4453.6,2.02636]
[1759882077025,1.2393,4453.7,4453.6,2.02636]
[1759882078224,1.64325,4453.7,4453.6,2.02636]
[1759882078526,1.64325,4453.7,4453.6,1.6224]
[1759882079724,1.64325,4453.7,4453.6,2.02636]
[1759882079926,1.2393,4453.7,4453.6,2.62546]
[1759882080126,1.64325,4453.7,4453.6,2.62546]
[1759882080319,1.64325,4453.7,4453.6,2.2215]
[1759882081028,1.8936,4453.3,4452.9,0.02514959]
[1759882081329,2.29761,4453.0,4452.9,1.32396959]
[1759882081717,0.225,4453.4,4453.3,0.5968]
[1759882081923,1.27398,4453.4,4453.3,2.0994]
[1759882082226,4.75635561,4453.4,4453.3,2.0994]
[1759882082928,2.86397561,4453.4,4453.3,2.50339]
[1759882083225,0.225,4453.8,4453.7,1.29875]
[1759882083420,0.00196688,4453.9,4453.8,0.40394]
[1759882083622,0.00196688,4453.9,4453.8,15.79199073]
[1759882083921,0.00196688,4453.9,4453.8,2.50334]
[1759882084128,0.00196688,4453.9,4453.8,7.50334]
[1759882084324,3.2078,4454.7,4454.6,2.50327]
[1759882084521,3.74175474,4454.7,4454.6,16.01692073]
[1759882084723,3.74175474,4454.7,4454.6,2.72827]
[1759882085130,3.2078,4454.7,4454.6,2.72827]
[1759882085428,3.20940704,4454.7,4454.6,2.72827]
[1759882086226,3.85440704,4454.7,4454.6,2.72827]
[1759882086426,3.20940704,4454.7,4454.6,2.72827]
[1759882087824,3.85440704,4454.7,4454.6,2.72827]
[1759882088024,3.85440704,4454.7,4454.5,0.3829]
[1759882088025,2.29751,4454.2,4454.1,0.8948]
[1759882088223,0.645,4453.8,4453.7,4.73155]
[1759882088531,0.645,4453.8,4453.7,5.93615]
[1759882088731,0.645,4453.8,4453.7,18.82085073]
[1759882088927,1.2634,4453.8,4453.7,18.82085073]
[1759882089326,1.2634,4453.8,4453.7,15.38805073]
[1759882089532,1.2634,4453.8,4453.7,1.5026]
[1759882089728,0.40397,4453.6,4453.3,0.62899]
[1759882090031,1.2634,4453.7,4453.6,0.8948]
[1759882090229,1.2634,4453.7,4453.6,1.5026]
[1759882091231,1.2634,4453.7,4453.6,2.0994]
[1759882091436,3.2078,4454.2,4454.1,2.50331]
[1759882091731,1.4884,4454.6,4454.5,1.8855]
[1759882091933,3.05602734,4454.6,4454.5,0.8948]
[1759882092127,1.2634,4454.3,4454.2,0.8328]
[1759882092435,1.2634,4454.3,4454.2,2.3244]
[1759882092628,1.2634,4454.3,4454.2,15.61305073]
[1759882093026,1.2634,4454.3,4454.2,1.5026]